[Event "FRA-ch Youth U18 2019"]
[Site "Hyeres"]
[Date "2019.04.18"]
[Round "6.4"]
[White "Mazzella, Enzo"]
[Black "Gault, Emmanuel"]
[Result "1-0"]
[ECO "B27"]
[WhiteElo "2249"]
[BlackElo "1962"]
[Annotator "NA"]
[PlyCount "79"]
[EventDate "2019.04.14"]
[EventType "swiss"]
[EventCountry "FRA"]
[SourceTitle "playchess.com"]
[Source "ChessBase"]
[SourceQuality "1"]
[TimeControl "5400+30"]

1. e4 {[%emt 0:00:00]} c5 {[%emt 0:00:00]} 2. Nc3 {[%emt 0:00:00]} g6 {[%emt 0:00:00]} 3. d4 {[%emt 0:00:00]} cxd4 {[%emt 0:00:00]} 4. Qxd4 {[%emt 0:00:00]} Nf6 {[%emt 0:00:00]} 5. Nf3 {[%emt 0:00:00]} Nc6 {[%emt 0:00:47]} 6. Qa4 {[%emt 0:00:00]} d6 {[%emt 0:00:09]} 7. e5 {[%emt 0:00:00]} Ng4 {[%emt 0:00:36]} 8. exd6 {[%emt 0:00:45]} Qxd6 {[%emt 0:00:09]} 9. h3 {[%emt 0:00:15]} Nge5 {[%emt 0:01:15]} 10. Nxe5 {[%emt 0:00:30]} Qxe5+ {[%emt 0:00:08]} 11. Be2 {[%emt 0:00:09]} Bg7 {[%emt 0:01:17]} 12. Be3 {[%emt 0:00:22]} O-O {[%emt 0:00:35]} 13. Rd1 {[%emt 0:00:09]} Be6 {[%emt 0:01:09]} 14. O-O {[%emt 0:06:31]} Rfd8 {[%emt 0:02:26]} 15. Bf3 {[%emt 0:27:29]} Nd4 {[%emt 0:21:09]} 16. Bxb7 {[%emt 0:17:01]} Rab8 {[%emt 0:00:20]} 17. Bd5 {[%emt 0:00:16]} Bxd5 {[%emt 0:10:42]} 18. Bxd4 {[%emt 0:04:57]} Qg5 {[%emt 0:03:30]} 19. Nxd5 {[%emt 0:02:20]} Rxd5 {[%emt 0:01:23]} 20. Qxa7 {[%emt 0:06:28]} Rc8 {[%emt 0:03:56]} 21. Bxg7 {[%emt 0:04:56]} Kxg7 {[%emt 0:00:58]} 22. c3 {[%emt 0:04:24]} Rcd8 {[%emt 0:02:17]} 23. Rxd5 {[%emt 0:00:30]} Rxd5 {[%emt 0:00:37]} 24. Qe3 {[%emt 0:01:08]} Qf6 {[%emt 0:00:45]} 25. Re1 {[%emt 0:00:26]} e6 {[%emt 0:00:24]} 26. b4 {[%emt 0:02:07]} Qh4 {[%emt 0:00:32]} 27. a4 {[%emt 0:05:47]} Qc4 {[%emt 0:00:26]} 28. a5 {[%emt 0:01:10]} Rd3 {[%emt 0:00:37]} 29. Qe4 {[%emt 0:04:56]} Qxc3 {[%emt 0:00:50]} 30. Qe5+ {[%emt 0:00:08]} Qxe5 {[%emt 0:01:17]} 31. Rxe5 {[%emt 0:00:01]} Rd1+ {[%emt 0:00:13]} 32. Kh2 {[%emt 0:00:01]} Ra1 {[%emt 0:00:39]} 33. Rb5 {[%emt 0:00:18]} Kf8 {[%emt 0:00:37]} 34. Rb6 {[%emt 0:01:29]} Ke8 {[%emt 0:01:01]} 35. a6 {[%emt 0:00:25]} Kd8 {[%emt 0:00:05]} 36. b5 {[%emt 0:00:04]} Kc8 {[%emt 0:00:32]} 37. Rb7 {[%emt 0:00:10]} Ra5 {[%emt 0:00:54]} 38. Rxf7 {[%emt 0:02:16]} Rxb5 {[%emt 0:00:10]} 39. a7 {[%emt 0:00:06]} Ra5 {[%emt 0:00:07]} 40. Rxh7 {[%emt 0:00:05]} 1-0

[Event "FRA-ch Youth U18 2019"]
[Site "Hyeres"]
[Date "2019.04.19"]
[Round "7.1"]
[White "Travadon, Loic"]
[Black "Gao, Etienne"]
[Result "1/2-1/2"]
[ECO "B23"]
[WhiteElo "2456"]
[BlackElo "2286"]
[Annotator "ChessBase"]
[PlyCount "42"]
[EventDate "2019.04.14"]
[EventType "swiss"]
[EventCountry "FRA"]
[SourceTitle "playchess.com"]
[Source "ChessBase"]
[SourceQuality "1"]
[TimeControl "5400+30"]

1. e4 {[%emt 0:00:00]} c5 {[%emt 0:00:00]} 2. Nc3 {[%emt 0:00:00]} d6 {[%emt 0:00:03]} 3. f4 {[%emt 0:00:00]} Nc6 {[%emt 0:00:52]} 4. Nf3 {[%emt 0:00:00]} g6 {[%emt 0:00:36]} 5. Bb5 {[%emt 0:00:00]} Bd7 {[%emt 0:04:07]} 6. Bc4 {[%emt 0:01:24]} e6 {[%emt 0:02:59]} 7. O-O {[%emt 0:00:19]} Nd4 {[%emt 0:09:22]} 8. f5 {[%emt 0:05:20]} Bg7 {[%emt 0:05:21]} 9. fxe6 {[%emt 0:00:17]} Bxe6 {[%emt 0:04:07]} 10. Bxe6 {[%emt 0:01:34]} fxe6 {[%emt 0:00:37]} 11. e5 {[%emt 0:03:33]} dxe5 {[%emt 0:06:31]} 12. d3 {[%emt 0:00:41]} Nf6 {[%emt 0:11:39]} 13. Bg5 {[%emt 0:05:58]} O-O {[%emt 0:03:12]} 14. Nxe5 {[%emt 0:01:50]} Qc7 {[%emt 0:01:30]} 15. Ng4 {[%emt 0:09:18]} Nxg4 {[%emt 0:03:41]} 16. Qxg4 {[%emt 0:00:11]} Rf5 {[%emt 0:01:21]} 17. Rxf5 {[%emt 0:14:03]} exf5 {[%emt 0:00:45]} 18. Qh4 {[%emt 0:00:22]} Qc6 {[%emt 0:05:49]} 19. Re1 {[%emt 0:01:12]} Re8 {[%emt 0:01:56]} 20. Rxe8+ {[%emt 0:01:59]} Qxe8 {[%emt 0:00:05]} 21. Kh1 {[%emt 0:13:35]} b6 {[%emt 0:08:11]} 1/2-1/2

[Event "FRA-ch Youth U18 2019"]
[Site "Hyeres"]
[Date "2019.04.19"]
[Round "7.2"]
[White "Derige Kane, Yan"]
[Black "Mazzella, Enzo"]
[Result "1/2-1/2"]
[ECO "D02"]
[WhiteElo "2057"]
[BlackElo "2249"]
[Annotator "NA"]
[PlyCount "122"]
[EventDate "2019.04.14"]
[EventType "swiss"]
[EventCountry "FRA"]
[SourceTitle "playchess.com"]
[Source "ChessBase"]
[SourceQuality "1"]
[TimeControl "5400+30"]

1. d4 {[%emt 0:00:00]} Nf6 {[%emt 0:00:00]} 2. Bg5 {[%emt 0:00:00]} c5 {[%emt 0:00:01]} 3. e3 {[%emt 0:00:12]} d5 {[%emt 0:00:23]} 4. Nf3 {[%emt 0:09:52]} Nc6 {[%emt 0:00:25]} 5. c3 {[%emt 0:02:59]} cxd4 {[%emt 0:06:43]} 6. exd4 {[%emt 0:00:38]} h6 {[%emt 0:01:26]} 7. Bxf6 {[%emt 0:29:25]} exf6 {[%emt 0:00:02]} 8. Bd3 {[%emt 0:00:06]} Be6 {[%emt 0:00:48]} 9. Nbd2 {[%emt 0:00:14]} Bd6 {[%emt 0:00:55]} 10. O-O {[%emt 0:00:28]} O-O {[%emt 0:00:11]} 11. Re1 {[%emt 0:02:12]} Rc8 {[%emt 0:06:13]} 12. Nh4 {[%emt 0:02:07]} Qd7 {[%emt 0:01:38]} 13. g3 {[%emt 0:03:42]} g5 {[%emt 0:32:48]} 14. Ng2 {[%emt 0:01:01]} Ne7 {[%emt 0:02:59]} 15. Nf1 {[%emt 0:07:44]} f5 {[%emt 0:21:46]} 16. f4 {[%emt 0:08:24]} gxf4 {[%emt 0:01:36]} 17. gxf4 {[%emt 0:00:15]} Qc7 {[%emt 0:04:20]} 18. Qf3 {[%emt 0:00:29]} Ng6 {[%emt 0:00:57]} 19. Ng3 {[%emt 0:00:32]} Bxf4 {[%emt 0:02:18]} 20. Nxf4 {[%emt 0:02:01]} Qxf4 {[%emt 0:01:58]} 21. Qxf4 {[%emt 0:07:07]} Nxf4 {[%emt 0:00:01]} 22. Bxf5 {[%emt 0:00:24]} Rce8 {[%emt 0:01:03]} 23. Rf1 {[%emt 0:01:06]} Ne2+ {[%emt 0:04:44]} 24. Nxe2 {[%emt 0:02:10]} Bxf5 {[%emt 0:00:01]} 25. Ng3 {[%emt 0:00:40]} Bg6 {[%emt 0:00:47]} 26. Rae1 {[%emt 0:04:51]} Rxe1 {[%emt 0:00:15]} 27. Rxe1 {[%emt 0:00:05]} f5 {[%emt 0:00:09]} 28. Re5 {[%emt 0:01:35]} f4 {[%emt 0:03:45]} 29. Nf1 {[%emt 0:00:03]} Re8 {[%emt 0:02:32]} 30. Rxe8+ {[%emt 0:03:10]} Bxe8 {[%emt 0:00:02]} 31. Nd2 {[%emt 0:03:41]} Kf7 {[%emt 0:01:07]} 32. b3 {[%emt 0:03:48]} b5 {[%emt 0:01:18]} 33. Kf2 {[%emt 0:02:10]} Kf6 {[%emt 0:00:05]} 34. a3 {[%emt 0:03:10]} Kf5 {[%emt 0:00:34]} 35. Kf3 {[%emt 0:00:36]} a5 {[%emt 0:01:46]} 36. Kf2 {[%emt 0:00:12]} Bh5 {[%emt 0:00:59]} 37. Kg2 {[%emt 0:00:39]} Bd1 {[%emt 0:00:33]} 38. Kf2 {[%emt 0:00:16]} a4 {[%emt 0:00:34]} 39. bxa4 {[%emt 0:00:53]} Bxa4 {[%emt 0:01:13]} 40. Nf3 {[%emt 0:00:20]} Ke4 {[%emt 0:00:29]} 41. Ne5 {[%emt 0:00:12]} Bb3 {[%emt 0:00:33]} 42. Ke2 {[%emt 0:00:21]} f3+ {[%emt 0:00:30]} 43. Kf2 {[%emt 0:01:07]} Bd1 {[%emt 0:00:30]} 44. h3 {[%emt 0:00:23]} Be2 {[%emt 0:00:28]} 45. h4 {[%emt 0:00:38]} h5 {[%emt 0:00:01]} 46. Ng6 {[%emt 0:00:29]} Kd3 {[%emt 0:00:35]} 47. Nf4+ {[%emt 0:00:09]} Kxc3 {[%emt 0:00:05]} 48. Nxd5+ {[%emt 0:00:38]} Kxd4 {[%emt 0:01:18]} 49. Nf4 {[%emt 0:00:19]} Kc4 {[%emt 0:00:31]} 50. Nxh5 {[%emt 0:00:09]} Kb3 {[%emt 0:00:22]} 51. Nf4 {[%emt 0:00:16]} Bc4 {[%emt 0:00:22]} 52. h5 {[%emt 0:01:25]} Kxa3 {[%emt 0:00:11]} 53. h6 {[%emt 0:00:09]} Bg8 {[%emt 0:00:18]} 54. Nd3 {[%emt 0:00:35]} Bh7 {[%emt 0:00:46]} 55. Nc5 {[%emt 0:00:50]} Kb4 {[%emt 0:00:05]} 56. Na6+ {[%emt 0:00:19]} Ka5 {[%emt 0:00:10]} 57. Nc5 {[%emt 0:00:18]} Kb6 {[%emt 0:01:40]} 58. Nb3 {[%emt 0:00:14]} Be4 {[%emt 0:00:38]} 59. Ke3 {[%emt 0:00:44]} f2 {[%emt 0:00:31]} 60. Kxf2 {[%emt 0:00:13]} Kc6 {[%emt 0:00:29]} 61. Nd4+ {[%emt 0:00:30]} Kd5 {[%emt 0:01:03]} 1/2-1/2

[Event "FRA-ch Youth U18 2019"]
[Site "Hyeres"]
[Date "2019.04.19"]
[Round "7.3"]
[White "Fournier, Loic"]
[Black "Arnaud, Aurelien"]
[Result "0-1"]
[ECO "D02"]
[WhiteElo "2024"]
[BlackElo "2174"]
[Annotator "NA"]
[PlyCount "84"]
[EventDate "2019.04.14"]
[EventType "swiss"]
[EventCountry "FRA"]
[SourceTitle "playchess.com"]
[Source "ChessBase"]
[SourceQuality "1"]
[TimeControl "5400+30"]

1. d4 {[%emt 0:00:00]} Nf6 {[%emt 0:00:00]} 2. Nf3 {[%emt 0:00:00]} e6 {[%emt 0:00:04]} 3. Bf4 {[%emt 0:00:03]} d5 {[%emt 0:00:30]} 4. e3 {[%emt 0:00:09]} Bd6 {[%emt 0:01:08]} 5. Bg3 {[%emt 0:00:07]} c5 {[%emt 0:00:18]} 6. c3 {[%emt 0:00:05]} Qc7 {[%emt 0:00:10]} 7. Nbd2 {[%emt 0:06:46]} Nbd7 {[%emt 0:00:14]} 8. Be2 {[%emt 0:06:27]} O-O {[%emt 0:00:59]} 9. a4 {[%emt 0:01:48]} Re8 {[%emt 0:05:03]} 10. a5 {[%emt 0:03:39]} e5 {[%emt 0:01:10]} 11. O-O {[%emt 0:07:23]} b6 {[%emt 0:09:26]} 12. Bb5 {[%emt 0:12:02]} Re7 {[%emt 0:02:53]} 13. Qa4 {[%emt 0:10:35]} e4 {[%emt 0:06:54]} 14. Nh4 {[%emt 0:12:18]} g6 {[%emt 0:02:15]} 15. axb6 {[%emt 0:13:16]} Nxb6 {[%emt 0:02:16]} 16. Qa3 {[%emt 0:00:45]} Bxg3 {[%emt 0:09:27]} 17. fxg3 {[%emt 0:00:23]} Ng4 {[%emt 0:00:51]} 18. dxc5 {[%emt 0:00:53]} Nd7 {[%emt 0:00:20]} 19. c6 {[%emt 0:05:20]} Nb6 {[%emt 0:02:05]} 20. Qc5 {[%emt 0:00:53]} Ne5 {[%emt 0:03:24]} 21. c4 {[%emt 0:05:38]} Be6 {[%emt 0:04:27]} 22. cxd5 {[%emt 0:02:20]} Bxd5 {[%emt 0:00:02]} 23. Ra6 {[%emt 0:05:56]} Rd8 {[%emt 0:00:13]} 24. Rfa1 {[%emt 0:00:21]} Nc8 {[%emt 0:00:14]} 25. R6a4 {[%emt 0:02:32]} f5 {[%emt 0:00:58]} 26. Rd4 {[%emt 0:00:16]} Nb6 {[%emt 0:01:46]} 27. Nb1 {[%emt 0:02:00]} Qd6 {[%emt 0:06:46]} 28. Qxd6 {[%emt 0:00:53]} Rxd6 {[%emt 0:00:02]} 29. Nc3 {[%emt 0:00:16]} Kf7 {[%emt 0:00:33]} 30. Rad1 {[%emt 0:00:40]} Ke6 {[%emt 0:00:25]} 31. g4 {[%emt 0:00:22]} Nxg4 {[%emt 0:05:38]} 32. Nxd5 {[%emt 0:00:57]} Rxd5 {[%emt 0:00:57]} 33. Bc4 {[%emt 0:00:18]} Nxc4 {[%emt 0:01:42]} 34. Rxd5 {[%emt 0:00:04]} Ngxe3 {[%emt 0:00:27]} 35. Rc5 {[%emt 0:00:47]} Nxd1 {[%emt 0:02:49]} 36. c7 {[%emt 0:00:04]} Nd6 {[%emt 0:02:06]} 37. Rc6 {[%emt 0:01:02]} Re8 {[%emt 0:00:25]} 38. Kf1 {[%emt 0:00:47]} Nxb2 {[%emt 0:00:18]} 39. g4 {[%emt 0:00:11]} Kd7 {[%emt 0:00:52]} 40. Rc2 {[%emt 0:00:24]} Nd3 {[%emt 0:00:14]} 41. Ng2 {[%emt 0:00:18]} f4 {[%emt 0:00:21]} 42. Ra2 {[%emt 0:00:23]} Rc8 {[%emt 0:00:32]} 0-1

[Event "FRA-ch Youth U18 2019"]
[Site "Hyeres"]
[Date "2019.04.19"]
[Round "7.4"]
[White "Brault, Gabriel"]
[Black "Pham, Arthur"]
[Result "1/2-1/2"]
[ECO "B21"]
[WhiteElo "1884"]
[BlackElo "2099"]
[Annotator "NA"]
[PlyCount "67"]
[EventDate "2019.04.14"]
[EventType "swiss"]
[EventCountry "FRA"]
[SourceTitle "playchess.com"]
[Source "ChessBase"]
[SourceQuality "1"]
[TimeControl "5400+30"]

1. e4 {[%emt 0:00:00]} c5 {[%emt 0:00:00]} 2. Be2 {[%emt 0:00:00]} Nc6 {[%emt 0:00:00]} 3. f4 {[%emt 0:00:00]} g6 {[%emt 0:00:42]} 4. Nf3 {[%emt 0:00:01]} Bg7 {[%emt 0:00:11]} 5. c3 {[%emt 0:00:07]} d5 {[%emt 0:02:27]} 6. d3 {[%emt 0:01:08]} e6 {[%emt 0:05:23]} 7. O-O {[%emt 0:01:52]} Nge7 {[%emt 0:01:10]} 8. Be3 {[%emt 0:01:31]} d4 {[%emt 0:03:10]} 9. Bf2 {[%emt 0:06:17]} e5 {[%emt 0:03:34]} 10. cxd4 {[%emt 0:06:43]} exf4 {[%emt 0:11:40]} 11. dxc5 {[%emt 0:03:07]} Bxb2 {[%emt 0:02:39]} 12. Nbd2 {[%emt 0:01:43]} O-O {[%emt 0:11:11]} 13. Rb1 {[%emt 0:06:13]} Bg7 {[%emt 0:00:08]} 14. Qa4 {[%emt 0:06:21]} Qd7 {[%emt 0:05:28]} 15. Kh1 {[%emt 0:01:27]} Rd8 {[%emt 0:00:54]} 16. Nb3 {[%emt 0:01:19]} Qe6 {[%emt 0:08:06]} 17. Ng5 {[%emt 0:11:21]} Qf6 {[%emt 0:02:58]} 18. Nf3 {[%emt 0:03:10]} g5 {[%emt 0:03:41]} 19. d4 {[%emt 0:03:02]} g4 {[%emt 0:01:26]} 20. Ne1 {[%emt 0:01:37]} Qh6 {[%emt 0:07:33]} 21. g3 {[%emt 0:11:41]} f5 {[%emt 0:11:02]} 22. d5 {[%emt 0:05:26]} fxe4 {[%emt 0:04:34]} 23. dxc6 {[%emt 0:01:32]} e3 {[%emt 0:01:18]} 24. c7 {[%emt 0:03:06]} Rf8 {[%emt 0:05:02]} 25. Bxe3 {[%emt 0:00:19]} fxe3 {[%emt 0:00:15]} 26. Rxf8+ {[%emt 0:00:21]} Bxf8 {[%emt 0:01:25]} 27. Bxg4 {[%emt 0:01:55]} Qg6 {[%emt 0:00:28]} 28. Bxc8 {[%emt 0:02:28]} Qxb1 {[%emt 0:02:59]} 29. Be6+ {[%emt 0:00:05]} Kh8 {[%emt 0:00:08]} 30. Qd4+ {[%emt 0:01:34]} Bg7 {[%emt 0:00:01]} 31. Qd8+ {[%emt 0:06:36]} Bf8 {[%emt 0:00:20]} 32. Qd4+ {[%emt 0:00:34]} Bg7 {[%emt 0:00:04]} 33. Qd8+ {[%emt 0:00:10]} Bf8 {[%emt 0:03:09]} 34. Qd4+ {[%emt 0:00:27]} 1/2-1/2

[Event "FRA-ch Youth U18 2019"]
[Site "Hyeres"]
[Date "2019.04.20"]
[Round "8.1"]
[White "Mazzella, Enzo"]
[Black "Travadon, Loic"]
[Result "1/2-1/2"]
[ECO "C41"]
[WhiteElo "2249"]
[BlackElo "2456"]
[Annotator "ChessBase"]
[PlyCount "212"]
[EventDate "2019.04.14"]
[EventType "swiss"]
[EventCountry "FRA"]
[SourceTitle "playchess.com"]
[Source "ChessBase"]
[SourceQuality "1"]
[TimeControl "5400+30"]

1. e4 {[%emt 0:00:00]} e5 {[%emt 0:00:00]} 2. Nf3 {[%emt 0:00:00]} d6 {[%emt 0:00:00]} 3. d4 {[%emt 0:00:00]} exd4 {[%emt 0:00:00]} 4. Nxd4 {[%emt 0:00:00]} Nf6 {[%emt 0:00:00]} 5. Nc3 {[%emt 0:00:02]} Be7 {[%emt 0:00:00]} 6. Bf4 {[%emt 0:00:12]} O-O {[%emt 0:00:00]} 7. Qd2 {[%emt 0:00:08]} d5 {[%emt 0:00:00]} 8. exd5 {[%emt 0:28:33]} Nxd5 {[%emt 0:00:00]} 9. Nxd5 {[%emt 0:04:18]} Qxd5 {[%emt 0:00:00]} 10. Nb3 {[%emt 0:01:40]} Qxd2+ {[%emt 0:03:11]} 11. Nxd2 {[%emt 0:00:12]} Bf5 {[%emt 0:00:56]} 12. O-O-O {[%emt 0:08:26]} Nc6 {[%emt 0:00:29]} 13. Nb3 {[%emt 0:03:22]} Bf6 {[%emt 0:01:05]} 14. Bd3 {[%emt 0:07:27]} Bxd3 {[%emt 0:00:18]} 15. Rxd3 {[%emt 0:00:02]} Nb4 {[%emt 0:05:55]} 16. Rd7 {[%emt 0:02:49]} Nxa2+ {[%emt 0:00:05]} 17. Kb1 {[%emt 0:00:04]} Nb4 {[%emt 0:00:03]} 18. c3 {[%emt 0:06:31]} Na6 {[%emt 0:00:45]} 19. Bxc7 {[%emt 0:01:28]} b5 {[%emt 0:02:45]} 20. Bf4 {[%emt 0:03:57]} Rfc8 {[%emt 0:01:36]} 21. Rc1 {[%emt 0:04:24]} b4 {[%emt 0:05:44]} 22. Rd6 {[%emt 0:02:50]} Rc4 {[%emt 0:09:30]} 23. Bg3 {[%emt 0:06:18]} Nc5 {[%emt 0:04:38]} 24. Nxc5 {[%emt 0:00:32]} Rxc5 {[%emt 0:00:07]} 25. cxb4 {[%emt 0:00:25]} Rb5 {[%emt 0:00:46]} 26. Rdc6 {[%emt 0:01:01]} h5 {[%emt 0:00:35]} 27. Rc8+ {[%emt 0:04:37]} Rxc8 {[%emt 0:00:01]} 28. Rxc8+ {[%emt 0:00:01]} Kh7 {[%emt 0:00:00]} 29. Bd6 {[%emt 0:01:50]} Rd5 {[%emt 0:00:43]} 30. Bc5 {[%emt 0:00:06]} Rd2 {[%emt 0:00:18]} 31. Ra8 {[%emt 0:00:51]} Rxb2+ {[%emt 0:02:07]} 32. Kc1 {[%emt 0:00:01]} Re2 {[%emt 0:01:00]} 33. Kd1 {[%emt 0:00:31]} Rb2 {[%emt 0:01:01]} 34. Kc1 {[%emt 0:00:12]} Re2 {[%emt 0:00:06]} 35. Kd1 {[%emt 0:00:01]} Rb2 {[%emt 0:00:01]} 36. Rxa7 {[%emt 0:00:22]} Kg6 {[%emt 0:00:36]} 37. Rb7 {[%emt 0:02:29]} Bh4 {[%emt 0:00:25]} 38. g3 {[%emt 0:00:33]} Bg5 {[%emt 0:00:08]} 39. h4 {[%emt 0:13:15]} Bf6 40. Ke1 {[%emt 0:00:00]} Kf5 {[%emt 0:01:35]} 41. Kf1 {[%emt 0:00:00]} Ke6 {[%emt 0:00:30]} 42. Kg2 {[%emt 0:00:00]} Rc2 {[%emt 0:02:55]} 43. Ra7 {[%emt 0:00:00]} g5 {[%emt 1:01:36]} 44. hxg5 {[%emt 0:00:00]} Bxg5 {[%emt 0:00:00]} 45. Ra6+ {[%emt 0:00:00]} Kf5 {[%emt 0:00:00]} 46. Ra5 {[%emt 0:00:00]} Ke6 {[%emt 0:00:00]} 47. Ra1 {[%emt 0:00:32]} h4 {[%emt 0:00:00]} 48. gxh4 {[%emt 0:00:30]} Bxh4 {[%emt 0:00:00]} 49. Rb1 {[%emt 0:00:00]} f5 {[%emt 0:00:00]} 50. Rb3 {[%emt 0:01:59]} f4 {[%emt 0:00:00]} 51. Kf3 {[%emt 0:00:55]} Rc4 {[%emt 0:00:00]} 52. Rd3 {[%emt 0:01:34]} Bf6 {[%emt 0:00:00]} 53. Bd6 {[%emt 0:00:39]} Bd4 {[%emt 0:00:00]} 54. Bxf4 {[%emt 0:00:37]} Rxb4 {[%emt 0:00:00]} 55. Bg3 {[%emt 0:00:38]} Rc4 {[%emt 0:00:00]} 56. Kg2 {[%emt 0:00:22]} Ra4 {[%emt 0:00:00]} 57. Rb3 {[%emt 0:00:18]} Ra5 {[%emt 0:00:00]} 58. Kh3 {[%emt 0:00:37]} Kf5 {[%emt 0:00:00]} 59. Rf3+ {[%emt 0:00:20]} Kg6 {[%emt 0:00:00]} 60. Rd3 {[%emt 0:00:12]} Be5 {[%emt 0:00:00]} 61. f4 {[%emt 0:00:08]} Bf6 {[%emt 0:00:00]} 62. Kg4 {[%emt 0:00:10]} Ra4 {[%emt 0:00:00]} 63. Rd7 {[%emt 0:01:08]} Rc4 {[%emt 0:00:00]} 64. Ra7 {[%emt 0:00:11]} Rb4 {[%emt 0:00:00]} 65. Ra6 {[%emt 0:00:42]} Kf7 {[%emt 0:00:00]} 66. Bf2 {[%emt 0:00:45]} Bd4 {[%emt 0:00:00]} 67. Bh4 {[%emt 0:00:39]} Rb1 {[%emt 0:00:00]} 68. Bg5 {[%emt 0:00:31]} Rb6 {[%emt 0:00:00]} 69. Ra7+ {[%emt 0:00:11]} Kg8 {[%emt 0:00:00]} 70. Rd7 {[%emt 0:00:57]} Bg7 {[%emt 0:00:00]} 71. f5 {[%emt 0:00:35]} Bf6 {[%emt 0:00:00]} 72. Bxf6 {[%emt 0:00:24]} Rxf6 {[%emt 0:00:00]} 73. Kg5 {[%emt 0:00:14]} Ra6 {[%emt 0:00:00]} 74. Re7 {[%emt 0:01:07]} Kf8 {[%emt 0:00:00]} 75. Rh7 {[%emt 0:00:25]} Kg8 {[%emt 0:00:00]} 76. Rh4 {[%emt 0:00:33]} Kg7 {[%emt 0:00:00]} 77. Re4 {[%emt 0:00:16]} Kf7 {[%emt 0:00:00]} 78. Rb4 {[%emt 0:00:23]} Kg7 {[%emt 0:00:00]} 79. Rb7+ {[%emt 0:00:13]} Kg8 {[%emt 0:00:00]} 80. Rb5 {[%emt 0:00:36]} Kg7 {[%emt 0:00:00]} 81. Rc5 {[%emt 0:00:11]} Kg8 {[%emt 0:00:00]} 82. Re5 {[%emt 0:00:33]} Kf7 {[%emt 0:00:00]} 83. Rd5 {[%emt 0:00:19]} Kg7 {[%emt 0:00:00]} 84. Rb5 {[%emt 0:00:40]} Kg8 {[%emt 0:00:00]} 85. Rc5 {[%emt 0:01:15]} Kg7 {[%emt 0:00:00]} 86. Rc7+ {[%emt 0:00:22]} Kg8 {[%emt 0:00:00]} 87. Rc4 {[%emt 0:00:19]} Kg7 {[%emt 0:00:00]} 88. Rc5 {[%emt 0:00:07]} Kg8 {[%emt 0:00:00]} 89. Rc8+ {[%emt 0:01:05]} Kg7 {[%emt 0:00:00]} 90. Rb8 {[%emt 0:00:14]} Rc6 {[%emt 0:00:00]} 91. Ra8 {[%emt 0:00:06]} Rb6 {[%emt 0:00:00]} 92. Ra5 {[%emt 0:00:19]} Rc6 {[%emt 0:00:00]} 93. Ra1 {[%emt 0:00:54]} Rb6 {[%emt 0:00:00]} 94. Rf1 {[%emt 0:00:08]} Rb2 {[%emt 0:00:00]} 95. Rf4 {[%emt 0:01:25]} Rg2+ {[%emt 0:00:00]} 96. Rg4 {[%emt 0:00:03]} Rxg4+ {[%emt 0:00:00]} 97. Kxg4 {[%emt 0:00:10]} Kf6 {[%emt 0:00:00]} 98. Kf4 {[%emt 0:00:07]} Kf7 {[%emt 0:00:00]} 99. Ke5 {[%emt 0:00:07]} Ke7 {[%emt 0:00:00]} 100. f6+ {[%emt 0:00:10]} Kf7 {[%emt 0:00:00]} 101. Kf5 {[%emt 0:00:10]} Kf8 {[%emt 0:00:00]} 102. Kf4 {[%emt 0:00:17]} Kf7 {[%emt 0:00:00]} 103. Ke5 {[%emt 0:00:37]} Kf8 {[%emt 0:00:00]} 104. Ke6 {[%emt 0:00:20]} Ke8 {[%emt 0:00:00]} 105. f7+ {[%emt 0:00:06]} Kf8 {[%emt 0:00:00]} 106. Kd6 {[%emt 0:00:06]} Kxf7 {[%emt 0:00:00]} 1/2-1/2

[Event "FRA-ch Youth U18 2019"]
[Site "Hyeres"]
[Date "2019.04.20"]
[Round "8.2"]
[White "Gao, Etienne"]
[Black "Arnaud, Aurelien"]
[Result "1-0"]
[ECO "C86"]
[WhiteElo "2286"]
[BlackElo "2174"]
[Annotator "NA"]
[PlyCount "119"]
[EventDate "2019.04.14"]
[EventType "swiss"]
[EventCountry "FRA"]
[SourceTitle "playchess.com"]
[Source "ChessBase"]
[SourceQuality "1"]
[TimeControl "5400+30"]

1. e4 {[%emt 0:00:00]} e5 {[%emt 0:00:00]} 2. Nf3 {[%emt 0:00:00]} Nc6 {[%emt 0:00:00]} 3. Bb5 {[%emt 0:00:01]} a6 {[%emt 0:00:01]} 4. Ba4 {[%emt 0:00:09]} Nf6 {[%emt 0:00:15]} 5. O-O {[%emt 0:00:15]} Be7 {[%emt 0:00:10]} 6. Qe2 {[%emt 0:00:16]} b5 {[%emt 0:00:30]} 7. Bb3 {[%emt 0:00:05]} O-O {[%emt 0:00:27]} 8. c3 {[%emt 0:00:13]} d5 {[%emt 0:00:31]} 9. d3 {[%emt 0:00:13]} Be6 {[%emt 0:00:43]} 10. Rd1 {[%emt 0:01:34]} Qd7 {[%emt 0:02:06]} 11. Nbd2 {[%emt 0:04:01]} h6 {[%emt 0:00:19]} 12. Nf1 {[%emt 0:01:24]} Rfe8 {[%emt 0:01:29]} 13. Ng3 {[%emt 0:03:06]} Bf8 {[%emt 0:01:41]} 14. Bd2 {[%emt 0:02:49]} Rad8 {[%emt 0:04:00]} 15. Be1 {[%emt 0:06:32]} g6 {[%emt 0:04:10]} 16. Rac1 {[%emt 0:07:40]} Bg7 {[%emt 0:03:56]} 17. c4 {[%emt 0:12:19]} bxc4 {[%emt 0:02:25]} 18. dxc4 {[%emt 0:00:12]} d4 {[%emt 0:00:15]} 19. Ba4 {[%emt 0:00:17]} Bg4 {[%emt 0:07:28]} 20. h3 {[%emt 0:02:20]} Bxf3 {[%emt 0:00:17]} 21. Qxf3 {[%emt 0:00:14]} Re6 {[%emt 0:00:35]} 22. b4 {[%emt 0:03:24]} Rb8 {[%emt 0:01:34]} 23. Rb1 {[%emt 0:08:24]} Qc8 {[%emt 0:00:57]} 24. c5 {[%emt 0:03:35]} Nd7 {[%emt 0:02:31]} 25. Rdc1 {[%emt 0:04:16]} Na7 {[%emt 0:01:24]} 26. Qd3 {[%emt 0:06:03]} c6 {[%emt 0:01:43]} 27. Bb3 {[%emt 0:00:08]} Rf6 {[%emt 0:01:21]} 28. a4 {[%emt 0:00:46]} Bf8 {[%emt 0:00:51]} 29. Bd1 {[%emt 0:02:45]} a5 {[%emt 0:01:36]} 30. Bg4 {[%emt 0:00:06]} axb4 {[%emt 0:02:06]} 31. Rxb4 {[%emt 0:04:04]} Rxb4 {[%emt 0:06:07]} 32. Bxb4 {[%emt 0:00:04]} h5 {[%emt 0:00:47]} 33. Bd1 {[%emt 0:02:05]} Be7 {[%emt 0:03:05]} 34. Nf1 {[%emt 0:06:19]} Qf8 {[%emt 0:04:59]} 35. Qa6 {[%emt 0:01:55]} Nc8 {[%emt 0:01:10]} 36. a5 {[%emt 0:02:22]} Kh7 {[%emt 0:02:26]} 37. Qc4 {[%emt 0:02:33]} Rf4 {[%emt 0:01:18]} 38. Ba4 {[%emt 0:04:19]} Na7 {[%emt 0:00:45]} 39. f3 {[%emt 0:00:26]} g5 {[%emt 0:00:30]} 40. Qa6 {[%emt 0:02:07]} Qa8 {[%emt 0:01:45]} 41. Ng3 {[%emt 0:01:14]} g4 {[%emt 0:04:38]} 42. Nxh5 {[%emt 0:02:19]} gxf3 {[%emt 0:00:08]} 43. Nxf4 {[%emt 0:00:06]} exf4 {[%emt 0:00:06]} 44. Qd3 {[%emt 0:02:10]} Ne5 {[%emt 0:01:06]} 45. Qxd4 {[%emt 0:00:51]} Qg8 {[%emt 0:00:48]} 46. Rc2 {[%emt 0:00:07]} Bf6 {[%emt 0:00:31]} 47. Qd2 {[%emt 0:01:35]} Bg5 {[%emt 0:01:28]} 48. Qd6 {[%emt 0:01:47]} f6 {[%emt 0:02:43]} 49. Bc3 {[%emt 0:01:25]} fxg2 {[%emt 0:03:50]} 50. Bxe5 {[%emt 0:00:12]} fxe5 {[%emt 0:00:21]} 51. Qd7+ {[%emt 0:00:33]} Kh6 {[%emt 0:01:20]} 52. Qd6+ {[%emt 0:00:11]} Kh7 {[%emt 0:00:45]} 53. Qd7+ {[%emt 0:00:03]} Kh6 {[%emt 0:00:09]} 54. Qg4 {[%emt 0:01:25]} Qd8 {[%emt 0:00:52]} 55. Rxg2 {[%emt 0:01:12]} f3 {[%emt 0:00:26]} 56. Qxf3 {[%emt 0:00:37]} Qd4+ {[%emt 0:00:09]} 57. Kh1 {[%emt 0:00:02]} Qxa4 {[%emt 0:00:54]} 58. Qf8+ {[%emt 0:00:04]} Kh5 {[%emt 0:00:57]} 59. Qh8+ {[%emt 0:00:08]} Bh6 {[%emt 0:00:35]} 60. Qxe5+ {[%emt 0:00:10]} 1-0